fUST/lending_fUST_20240424
["ID","MTS","AMOUNT","RATE_DAILY","PERIOD"]
[323413672,1713973848865,-500.0,0.00016712,2]
[323413674,1713973848874,-1963.58,0.00016712,2]
[323413675,1713973848884,-500.0,0.00016712,2]
[323413677,1713973848893,-500.0,0.00016712,2]
[323413679,1713973848902,-500.0,0.00016712,2]
[323413681,1713973848911,-500.0,0.00016712,2]
[323413683,1713973848920,-952.39,0.00016712,2]
[323413686,1713973848929,-500.0,0.00016712,2]
[323413688,1713973848939,-500.0,0.00016712,2]
[323413690,1713973848948,-500.0,0.00016712,2]
[323413692,1713973848957,-500.27138375,0.00016712,2]
[323413694,1713973848966,-500.0,0.00016712,2]
[323413696,1713973848976,-500.0,0.00016712,2]
[323413697,1713973848985,-500.0,0.00016712,2]
[323413700,1713973848994,-500.0,0.00016712,2]
[323413702,1713973849004,-1744.46,0.00016712,2]
[323413704,1713973849013,-883.68,0.00016712,2]
[323413705,1713973849022,-1642.42,0.00016712,2]
[323413708,1713973849031,-613.48,0.00016712,2]
[323413709,1713973849040,-500.0,0.00016712,2]
[323413711,1713973849050,-2192.71,0.00016712,2]
[323413713,1713973849059,-503.54244888,0.00016712,2]
[323413715,1713973849068,-500.0,0.00016712,2]
[323413718,1713973849080,-500.0,0.00016712,2]
[323413720,1713973849090,-500.0,0.00016712,2]
[323413721,1713973849099,-537.88965798,0.00016712,2]
[323413723,1713973849109,-500.0,0.00016712,2]
[323413726,1713973849118,-465.15632115,0.00016712,2]
[323413728,1713973849130,-500.0,0.00016712,2]
[323413730,1713973849141,-628.76,0.00016712,2]
[323413732,1713973849150,-500.0,0.00016712,2]
[323413733,1713973849160,-500.0,0.00016712,2]
[323413735,1713973849169,-611.79,0.00016712,2]
[323413737,1713973849178,-500.0,0.00016712,2]
[323413740,1713973849188,-500.0,0.00016712,2]
[323413742,1713973849197,-500.0,0.00016712,2]
[323413743,1713973849207,-587.8,0.00016712,2]
[323413757,1713973849313,-500.0,0.00016712,2]
[323413760,1713973849334,-500.0,0.00016712,2]
[323413762,1713973849344,-500.0,0.00016712,2]
[323413764,1713973849352,-500.0,0.00016712,2]
[323413766,1713973849361,-500.0,0.00016712,2]
[323413768,1713973849370,-505.4742734,0.00016712,2]
[323413770,1713973849381,-500.0,0.00016712,2]
[323413772,1713973849390,-500.0,0.00016712,2]
[323413774,1713973849399,-500.0,0.00016712,2]
[323413776,1713973849408,-500.0,0.00016712,2]
[323413778,1713973849417,-500.0,0.00016712,2]
[323413780,1713973849426,-500.43747297,0.00016712,2]
[323413782,1713973849436,-500.0,0.00016712,2]
[323413784,1713973849446,-500.0,0.00016712,2]
[323413786,1713973849454,-500.97262721,0.00016712,2]
[323413788,1713973849463,-500.7999827,0.00016712,2]
[323413790,1713973849472,-153.54059602,0.00016712,2]
[323413792,1713973849481,-998.74,0.00016712,2]
[323413794,1713973849490,-500.0,0.00016712,2]
[323413796,1713973849499,-500.0,0.00016712,2]
[323413798,1713973849507,-984.64,0.00016712,2]
[323413800,1713973849517,-500.0,0.00016712,2]
[323413802,1713973849526,-500.0,0.00016712,2]
[323413804,1713973849535,-500.0,0.00016712,2]
[323413806,1713973849546,-500.0,0.00016712,2]
[323413808,1713973849554,-500.0,0.00016712,2]
[323413810,1713973849563,-500.0,0.00016712,2]
[323413812,1713973849572,-500.0,0.00016712,2]
[323413814,1713973849581,-500.0,0.00016712,2]
[323413816,1713973849590,-500.0,0.00016712,2]
[323413818,1713973849599,-500.51741182,0.00016712,2]
[323413820,1713973849610,-500.0,0.00016712,2]
[323413822,1713973849619,-500.0,0.00016712,2]
[323413824,1713973849630,-500.0,0.00016712,2]
[323413826,1713973849639,-500.0,0.00016712,2]
[323413828,1713973849648,-500.0,0.00016712,2]
[323413830,1713973849658,-1093.45,0.00016712,2]
[323413832,1713973849666,-500.0,0.00016712,2]
[323413834,1713973849676,-500.0,0.00016712,2]
[323413836,1713973849686,-500.0,0.00016712,2]
[323413838,1713973849695,-705.78,0.00016712,2]
[323413840,1713973849704,-2397.32,0.00016712,2]
[323413842,1713973849713,-500.0,0.00016712,2]
[323413844,1713973849723,-210.94047831,0.00016712,2]
[323413846,1713973849732,-500.0,0.00016712,2]
[323413848,1713973849742,-500.0,0.00016712,2]
[323413850,1713973849752,-500.0,0.00016712,2]
[323413852,1713973849761,-500.0,0.00016712,2]
[323413855,1713973849771,-1960.03,0.00016712,2]
[323413857,1713973849781,-180.45082153,0.00016712,2]
[323413858,1713973849791,-500.0,0.00016712,2]
[323413861,1713973849801,-500.0,0.00016712,2]
[323413863,1713973849810,-500.0,0.00016712,2]
[323413864,1713973849819,-10747.6,0.00016712,2]
[323413867,1713973849829,-822.61,0.00016712,2]
[323413869,1713973849839,-500.0,0.00016712,2]
[323413871,1713973849850,-1001.97,0.00016712,2]
[323413873,1713973849859,-500.0,0.00016712,2]
[323413875,1713973849868,-500.0,0.00016712,2]
[323413877,1713973849878,-500.0,0.00016712,2]
[323413879,1713973849887,-1272.98,0.00016712,2]
[323413881,1713973849897,-500.0,0.00016712,2]
[323413883,1713973849906,-500.0,0.00016712,2]
[323413885,1713973849915,-1047.3,0.00016712,2]
[323413887,1713973849925,-938.72,0.00016712,2]
[323413889,1713973849934,-501.31624573,0.00016712,2]
[323413891,1713973849943,-1002.06,0.00016712,2]
[323413893,1713973849953,-500.0,0.00016712,2]
[323413894,1713973849963,-500.0,0.00016712,2]
[323413896,1713973849972,-500.0,0.00016712,2]
[323413898,1713973849982,-503.84025622,0.00016712,2]
[323413900,1713973849993,-500.0,0.00016712,2]
[323413902,1713973850004,-7332.05,0.00016712,2]
[323413904,1713973850013,-615.69,0.00016712,2]
[323413906,1713973850022,-500.0,0.00016712,2]
[323413908,1713973850033,-19476.72,0.00016712,2]
[323413911,1713973850042,-514.25355199,0.00016712,2]
[323413913,1713973850053,-500.0,0.00016712,2]
[323413915,1713973850063,-500.0,0.00016712,2]
[323413917,1713973850074,-501.30699492,0.00016712,2]
[323413919,1713973850085,-500.0,0.00016712,2]
[323413920,1713973850099,-1096.43,0.00016712,2]
[323413923,1713973850108,-500.0,0.00016712,2]
[323413925,1713973850118,-500.82405238,0.00016712,2]
[323413927,1713973850131,-500.0,0.00016712,2]
[323413928,1713973850141,-500.0,0.00016712,2]
[323413930,1713973850151,-500.0,0.00016712,2]
[323413933,1713973850163,-629.51,0.00016712,2]
[323413934,1713973850173,-502.14820261,0.00016712,2]
[323413937,1713973850183,-500.0,0.00016712,2]
[323413938,1713973850193,-541.15010446,0.00016712,2]
[323413940,1713973850202,-500.0,0.00016712,2]
[323413943,1713973850213,-500.0,0.00016712,2]
[323413945,1713973850222,-501.14257175,0.00016712,2]
[323413947,1713973850232,-500.0,0.00016712,2]
[323413948,1713973850242,-15898.31,0.00016712,2]
[323413951,1713973850252,-545.29,0.00016712,2]
[323413953,1713973850261,-501.30256273,0.00016712,2]
[323413954,1713973850270,-500.72494323,0.00016712,2]
[323413956,1713973850280,-500.0,0.00016712,2]
[323413959,1713973850291,-500.0,0.00016712,2]
[323413961,1713973850301,-500.0,0.00016712,2]
[323413962,1713973850310,-500.0,0.00016712,2]
[323413964,1713973850319,-1298.62,0.00016712,2]
[323413966,1713973850329,-425.32897893,0.00016712,2]
[323413968,1713973850339,-602.15,0.00016712,2]
[323413970,1713973850348,-500.0,0.00016712,2]
[323413972,1713973850358,-500.0,0.00016712,2]
[323413974,1713973850367,-500.0,0.00016712,2]
[323413976,1713973850377,-402.07564828,0.00016712,2]
[323413978,1713973850386,-1307.55,0.00016712,2]
[323413980,1713973850396,-500.0,0.00016712,2]
[323413982,1713973850405,-487.27586317,0.00016712,2]
[323413984,1713973850415,-1533.51,0.00016712,2]
[323413986,1713973850425,-1480.74,0.00016712,2]
[323413988,1713973850435,-1355.25,0.00016712,2]
[323413990,1713973850445,-500.0,0.00016712,2]
[323413992,1713973850454,-641.71,0.00016712,2]
[323413994,1713973850464,-2155.08,0.00016712,2]
[323413996,1713973850474,-515.67267276,0.00016712,2]
[323413998,1713973850484,-512.71532442,0.00016712,2]
[323414000,1713973850494,-500.0,0.00016712,2]
[323414002,1713973850503,-500.0,0.00016712,2]
[323414004,1713973850513,-1175.27,0.00016712,2]
[323414006,1713973850524,-500.0,0.00016712,2]
[323414008,1713973850534,-1675.37,0.00016712,2]
[323414010,1713973850544,-500.0,0.00016712,2]
[323414012,1713973850554,-500.84504057,0.00016712,2]
[323414014,1713973850564,-500.0,0.00016712,2]
[323414016,1713973850573,-500.0,0.00016712,2]
[323414018,1713973850583,-500.0,0.00016712,2]
[323414020,1713973850593,-500.0,0.00016712,2]
[323414022,1713973850605,-500.0,0.00016712,2]
[323414024,1713973850615,-500.38101579,0.00016712,2]
[323414026,1713973850624,-500.0,0.00016712,2]
[323414029,1713973850641,-500.0,0.00016712,2]
[323414031,1713973850651,-500.0,0.00016712,2]
[323414033,1713973850661,-1788.24,0.00016712,2]
[323414034,1713973850671,-1123.22,0.00016712,2]
[323414036,1713973850681,-2426.9,0.00016712,2]
[323414038,1713973850691,-500.0,0.00016712,2]
[323414041,1713973850701,-500.0,0.00016712,2]
[323414043,1713973850711,-500.0,0.00016712,2]
[323414045,1713973850721,-7241.22,0.00016712,2]
[323414047,1713973850730,-756.6,0.00016712,2]
[323414049,1713973850740,-500.0,0.00016712,2]
[323414050,1713973850749,-529.0,0.00016712,2]
[323414052,1713973850759,-971.73,0.00016712,2]
[323414054,1713973850769,-500.0,0.00016712,2]
[323414057,1713973850779,-720.48,0.00016712,2]
[323414059,1713973850789,-749.1,0.00016712,2]
[323414061,1713973850800,-500.0,0.00016712,2]
[323414063,1713973850809,-3467.77,0.00016712,2]
[323414065,1713973850819,-1047.76,0.00016712,2]
[323414067,1713973850830,-500.0,0.00016712,2]
[323414069,1713973850839,-691.77,0.00016712,2]
[323414071,1713973850849,-500.0,0.00016712,2]
[323414073,1713973850859,-500.0,0.00016712,2]
[323414075,1713973850868,-500.74636177,0.00016712,2]
[323414077,1713973850883,-5159.31,0.00016712,2]
[323414078,1713973850892,-500.40325805,0.00016712,2]
[323414081,1713973850901,-611.69,0.00016712,2]
[323414083,1713973850911,-783.87,0.00016712,2]
[323414085,1713973850921,-3678.5,0.00016712,2]
[323414086,1713973850931,-500.0,0.00016712,2]
[323414088,1713973850941,-500.0,0.00016712,2]
[323414090,1713973850951,-500.0,0.00016712,2]
[323414093,1713973850961,-500.0,0.00016712,2]
[323414095,1713973850972,-1985.19,0.00016712,2]
[323414097,1713973850982,-500.0,0.00016712,2]
[323414098,1713973850991,-641.44,0.00016712,2]
[323414101,1713973851001,-2116.28,0.00016712,2]
[323414103,1713973851011,-516.29,0.00016712,2]
[323414104,1713973851020,-21869.9,0.00016712,2]
[323414107,1713973851030,-1052.56,0.00016712,2]
[323414109,1713973851040,-500.0,0.00016712,2]
[323414111,1713973851049,-500.0,0.00016712,2]
[323414113,1713973851060,-500.0,0.00016712,2]
[323414115,1713973851069,-1414.49,0.00016712,2]
[323414117,1713973851082,-624.27,0.00016712,2]
[323414119,1713973851092,-500.0,0.00016712,2]
[323414121,1713973851101,-962.52,0.00016712,2]
[323414122,1713973851111,-500.0,0.00016712,2]
[323414124,1713973851120,-500.0,0.00016712,2]
[323414126,1713973851135,-500.0,0.00016712,2]
[323414129,1713973851144,-7037.05,0.00016712,2]
[323414131,1713973851154,-500.0,0.00016712,2]
[323414133,1713973851165,-922.08,0.00016712,2]
[323414134,1713973851175,-500.0,0.00016712,2]
[323414137,1713973851185,-10281.24,0.00016712,2]
[323414139,1713973851194,-500.0,0.00016712,2]
[323414141,1713973851204,-587.01,0.00016712,2]
[323414143,1713973851213,-2381.69,0.00016712,2]
[323414145,1713973851222,-484.08119159,0.00016712,2]
[323414147,1713973851231,-1630.87,0.00016712,2]
[323414149,1713973851240,-500.0,0.00016712,2]
[323414151,1713973851249,-334.685207,0.00016731,2]
[323414152,1713973851258,-2788.962873,0.00016731,2]
[323414154,1713973851268,-1859.308583,0.00016731,2]
[323414157,1713973851278,-3848.879882,0.00016731,2]
[323414158,1713973851288,-620.00307038,0.00016846,2]
[323414160,1713973851297,-346.6537571,0.0001685,2]
[323414162,1713973851306,-334.685207,0.00016937,2]
[323414164,1713973851316,-2788.962873,0.00016937,2]
[323414166,1713973851325,-1859.308583,0.00016937,2]
[323414169,1713973851334,-3848.879882,0.00016937,2]
[323414171,1713973851344,-1345.39,0.00016986,2]
[323414184,1713973851456,-322.53905828,0.00016986,2]
[323414186,1713973851478,-500.0,0.00016986,2]
[323414188,1713973851488,-500.0,0.00016986,2]
[323414190,1713973851498,-500.0,0.00016986,2]
[323414192,1713973851507,-500.0,0.00016986,2]
[323414194,1713973851517,-500.0,0.00016986,2]
[323414196,1713973851526,-500.0,0.00016986,2]
[323414198,1713973851535,-500.0,0.00016986,2]
[323414200,1713973851545,-500.0,0.00016986,2]
[323414202,1713973851554,-1024.92,0.00016986,2]
[323414204,1713973851564,-500.0,0.00016986,2]
[323414206,1713973851574,-654.09,0.00016986,2]
[323414208,1713973851583,-174.55481657,0.00016986,2]
[323414210,1713973851593,-500.0,0.00016986,2]
[323414212,1713973851602,-500.0,0.00016986,2]
[323414214,1713973851612,-637.62,0.00016986,2]
[323414216,1713973851621,-500.0,0.00016986,2]
[323414218,1713973851636,-541.66,0.00016986,2]
[323414220,1713973851645,-500.0,0.00016986,2]
[323414222,1713973851655,-500.0,0.00016986,2]
[323414224,1713973851665,-500.0,0.00016986,2]
[323414226,1713973851675,-500.0,0.00016986,2]
[323414228,1713973851684,-500.0,0.00016986,2]
[323414230,1713973851694,-500.0,0.00016986,2]
[323414232,1713973851703,-500.0,0.00016986,2]
[323414234,1713973851714,-500.0,0.00016986,2]
[323414236,1713973851724,-500.0,0.00016986,2]
[323414238,1713973851733,-637.46,0.00016986,2]
[323414240,1713973851743,-500.0,0.00016986,2]
[323414242,1713973851753,-1841.01,0.00016986,2]
[323414244,1713973851762,-877.6,0.00016986,2]
[323414246,1713973851773,-500.0,0.00016986,2]
[323414248,1713973851782,-500.0,0.00016986,2]
[323414250,1713973851792,-783.92,0.00016986,2]
[323414252,1713973851801,-500.0,0.00016986,2]
[323414254,1713973851811,-500.0,0.00016986,2]
[323414256,1713973851820,-639.1,0.00016986,2]
[323414258,1713973851830,-500.0,0.00016986,2]
[323414260,1713973851840,-786.08,0.00016986,2]
[323414263,1713973851850,-500.0,0.00016986,2]
[323414264,1713973851860,-500.0,0.00016986,2]
[323414265,1713973851870,-500.0,0.00016986,2]
[323414266,1713973851883,-500.0,0.00016986,2]
[323414267,1713973851893,-500.0,0.00016986,2]
[323414268,1713973851903,-500.0,0.00016986,2]
[323414269,1713973851912,-500.0,0.00016986,2]
[323414270,1713973851922,-362.0002281,0.00016986,2]
[323414271,1713973851931,-500.0,0.00016986,2]
[323414272,1713973851941,-1310.72,0.00016986,2]
[323414273,1713973851951,-776.68,0.00016986,2]
[323414274,1713973851961,-3073.94,0.00016986,2]
[323414276,1713973851971,-500.0,0.00016986,2]
[323414277,1713973851981,-500.0,0.00016986,2]
[323414278,1713973851990,-500.0,0.00016986,2]
[323414280,1713973851999,-500.0,0.00016986,2]
[323414282,1713973852009,-500.0,0.00016986,2]
[323414284,1713973852019,-500.0,0.00016986,2]
[323414286,1713973852028,-500.0,0.00016986,2]
[323414288,1713973852038,-500.0,0.00016986,2]
[323414290,1713973852048,-1655.34,0.00016986,2]
[323414292,1713973852057,-500.0,0.00016986,2]
[323414294,1713973852067,-939.9,0.00016986,2]
[323414296,1713973852077,-4954.95,0.00016986,2]
[323414298,1713973852086,-500.0,0.00016986,2]
[323414300,1713973852098,-500.0,0.00016986,2]
[323414302,1713973852107,-2682.8,0.00016986,2]
[323414304,1713973852116,-1209.51,0.00016986,2]
[323414306,1713973852126,-818.79,0.00016986,2]
[323414308,1713973852138,-386.41745192,0.00016986,2]
[323414310,1713973852147,-500.0,0.00016986,2]
[323414312,1713973852156,-500.0,0.00016986,2]
[323414314,1713973852168,-500.0,0.00016986,2]
[323414316,1713973852178,-500.0,0.00016986,2]
[323414318,1713973852188,-1113.86,0.00016986,2]
[323414319,1713973852198,-627.1,0.00016986,2]
[323414321,1713973852207,-550.62,0.00016986,2]
[323414323,1713973852216,-500.0,0.00016986,2]
[323414325,1713973852225,-500.0,0.00016986,2]
[323414327,1713973852234,-500.0,0.00016986,2]
[323414329,1713973852244,-500.0,0.00016986,2]
[323414331,1713973852253,-362.61373832,0.00016986,2]
[323414333,1713973852263,-1098.08,0.00016986,2]
[323414335,1713973852272,-882.83,0.00016986,2]
[323414337,1713973852281,-500.0,0.00016986,2]
[323414339,1713973852290,-745.36,0.00016986,2]
[323414341,1713973852299,-500.0,0.00016986,2]
[323414343,1713973852308,-500.0,0.00016986,2]
[323414345,1713973852318,-500.0,0.00016986,2]
[323414347,1713973852327,-666.75,0.00016986,2]
[323414349,1713973852336,-500.0,0.00016986,2]
[323414351,1713973852345,-878.02,0.00016986,2]
[323414353,1713973852354,-2175.21,0.00016986,2]
[323414355,1713973852363,-500.0,0.00016986,2]
[323414357,1713973852372,-500.0,0.00016986,2]
[323414359,1713973852385,-500.0,0.00016986,2]
[323414361,1713973852394,-500.0,0.00016986,2]
[323414364,1713973852411,-493.57828559,0.00016986,2]
[323414367,1713973852430,-744.14,0.00016986,2]
[323414369,1713973852442,-500.0,0.00016986,2]
[323414372,1713973852457,-500.0,0.00016986,2]
[323414374,1713973852472,-500.0,0.00016986,2]
[323414377,1713973852489,-272.97830825,0.00016986,2]
[323414380,1713973852503,-500.0,0.00016986,2]
[323414382,1713973852516,-500.0,0.00016986,2]
[323414385,1713973852532,-500.0,0.00016986,2]
[323414387,1713973852545,-1963.58,0.00016986,2]
[323414390,1713973852561,-500.0,0.00016986,2]
[323414392,1713973852572,-500.0,0.00016986,2]
[323414395,1713973852589,-500.0,0.00016986,2]
[323414397,1713973852603,-500.0,0.00016986,2]
[323414400,1713973852618,-952.39,0.00016986,2]
[323414402,1713973852630,-500.0,0.00016986,2]
[323414404,1713973852645,-501.69960954,0.00016986,2]
[323414407,1713973852661,-500.0,0.00016986,2]
[323414410,1713973852677,-500.0,0.00016986,2]
[323414412,1713973852691,-500.0,0.00016986,2]
[323414414,1713973852702,-200.52326408,0.00016986,2]
[323414417,1713973852714,-1744.46,0.00016986,2]
[323414419,1713973852729,-883.68,0.00016986,2]
[323414422,1713973852742,-1642.42,0.00016986,2]
[323414424,1713973852756,-613.48,0.00016986,2]
[323414427,1713973852767,-500.0,0.00016986,2]
[323414429,1713973852781,-2192.71,0.00016986,2]
[323414431,1713973852793,-500.0,0.00016986,2]
[323414434,1713973852807,-500.0,0.00016986,2]
[323414436,1713973852820,-500.0,0.00016986,2]
[323414438,1713973852833,-500.0,0.00016986,2]
[323414441,1713973852846,-500.0,0.00016986,2]
[323414443,1713973852858,-628.76,0.00016986,2]
[323414446,1713973852872,-500.0,0.00016986,2]
[323414448,1713973852885,-500.0,0.00016986,2]
[323414450,1713973852897,-611.79,0.00016986,2]
[323414452,1713973852910,-500.0,0.00016986,2]
[323414455,1713973852922,-500.0,0.00016986,2]
[323414457,1713973852935,-500.0,0.00016986,2]
[323414459,1713973852947,-587.8,0.00016986,2]
[323414462,1713973852960,-500.0,0.00016986,2]
[323414464,1713973852972,-500.0,0.00016986,2]
[323414466,1713973852985,-500.0,0.00016986,2]
[323414468,1713973852998,-500.0,0.00016986,2]
[323414471,1713973853010,-500.0,0.00016986,2]
[323414473,1713973853022,-500.0,0.00016986,2]
[323414475,1713973853034,-500.0,0.00016986,2]
[323414478,1713973853046,-500.0,0.00016986,2]
[323414480,1713973853058,-372.66256397,0.00016986,2]
[323414482,1713973853070,-500.0,0.00016986,2]
[323414485,1713973853086,-552.53315865,0.00016986,2]
[323414487,1713973853100,-998.74,0.00016986,2]
[323414489,1713973853113,-500.0,0.00016986,2]
[323414492,1713973853125,-500.80733792,0.00016986,2]
[323414494,1713973853139,-984.64,0.00016986,2]
[323414496,1713973853150,-500.0,0.00016986,2]
[323414498,1713973853163,-638.62777397,0.00016986,2]
[323414501,1713973853175,-500.0,0.00016986,2]
[323414503,1713973853188,-500.0,0.00016986,2]
[323414505,1713973853200,-306.64562367,0.00016986,2]
[323414507,1713973853212,-500.0,0.00016986,2]
[323414510,1713973853226,-500.0,0.00016986,2]
[323414512,1713973853238,-500.0,0.00016986,2]
[323414514,1713973853251,-500.0,0.00016986,2]
[323414517,1713973853263,-500.0,0.00016986,2]
[323414519,1713973853274,-1093.45,0.00016986,2]
[323414521,1713973853287,-500.0,0.00016986,2]
[323414523,1713973853300,-500.0,0.00016986,2]
[323414526,1713973853312,-705.78,0.00016986,2]
[323414528,1713973853324,-2397.32,0.00016986,2]
[323414530,1713973853336,-500.0,0.00016986,2]
[323414533,1713973853349,-500.0,0.00016986,2]
[323414535,1713973853360,-391.74832948,0.00016986,2]
[323414537,1713973853373,-1960.03,0.00016986,2]
[323414539,1713973853389,-500.0,0.00016986,2]
[323414542,1713973853402,-500.0,0.00016986,2]
[323414544,1713973853414,-500.0,0.00016986,2]
[323414547,1713973853427,-10747.6,0.00016986,2]
[323414549,1713973853439,-822.61,0.00016986,2]
[323414551,1713973853452,-500.0,0.00016986,2]
[323414554,1713973853464,-1001.97,0.00016986,2]
[323414556,1713973853478,-500.0,0.00016986,2]
[323414558,1713973853491,-500.0,0.00016986,2]
[323414560,1713973853503,-500.0,0.00016986,2]
[323414563,1713973853515,-1272.98,0.00016986,2]
[323414565,1713973853527,-500.0,0.00016986,2]
[323414567,1713973853539,-1047.3,0.00016986,2]
[323414570,1713973853551,-938.72,0.00016986,2]
[323414572,1713973853563,-1002.06,0.00016986,2]
[323414574,1713973853575,-502.75127659,0.00016986,2]
[323414576,1713973853587,-500.0,0.00016986,2]
[323414579,1713973853599,-500.0,0.00016986,2]
[323414581,1713973853614,-7332.05,0.00016986,2]
[323414583,1713973853623,-615.69,0.00016986,2]
[323414585,1713973853637,-19476.72,0.00016986,2]
[323414605,1713973853821,-500.0,0.00016986,2]
[323414608,1713973853833,-500.0,0.00016986,2]
[323414610,1713973853842,-500.0,0.00016986,2]
[323414612,1713973853851,-1096.43,0.00016986,2]
[323414614,1713973853860,-500.0,0.00016986,2]
[323414615,1713973853869,-500.0,0.00016986,2]
[323414617,1713973853881,-629.51,0.00016986,2]
[323414620,1713973853895,-500.0,0.00016986,2]
[323414622,1713973853905,-291.97265709,0.00016986,2]
[323414624,1713973853915,-500.0,0.00016986,2]
[323414626,1713973853924,-500.0,0.00016986,2]
[323414627,1713973853934,-15898.31,0.00016986,2]
[323414629,1713973853943,-545.29,0.00016986,2]
[323414631,1713973853952,-500.0,0.00016986,2]
[323414634,1713973853962,-500.0,0.00016986,2]
[323414636,1713973853972,-500.0,0.00016986,2]
[323414637,1713973853981,-1298.62,0.00016986,2]
[323414639,1713973853990,-602.15,0.00016986,2]
[323414641,1713973854000,-500.0,0.00016986,2]
[323414643,1713973854010,-500.0,0.00016986,2]
[323414646,1713973854019,-1307.55,0.00016986,2]
[323414647,1713973854028,-500.0,0.00016986,2]
[323414649,1713973854038,-1533.51,0.00016986,2]
[323414652,1713973854047,-1480.74,0.00016986,2]
[323414654,1713973854056,-1355.25,0.00016986,2]
[323414655,1713973854066,-500.0,0.00016986,2]
[323414658,1713973854076,-641.71,0.00016986,2]
[323414659,1713973854086,-2155.08,0.00016986,2]
[323414661,1713973854097,-500.0,0.00016986,2]
[323414663,1713973854107,-1175.27,0.00016986,2]
[323414665,1713973854116,-500.0,0.00016986,2]
[323414667,1713973854126,-1675.37,0.00016986,2]
[323414669,1713973854141,-500.0,0.00016986,2]
[323414670,1713973854151,-500.0,0.00016986,2]
[323414671,1713973854162,-171.97717731,0.00016986,2]
[323414672,1713973854171,-500.0,0.00016986,2]
[323414673,1713973854180,-500.0,0.00016986,2]
[323414674,1713973854189,-500.0,0.00016986,2]
[323414675,1713973854198,-500.0,0.00016986,2]
[323414676,1713973854208,-500.0,0.00016986,2]
[323414677,1713973854217,-1788.24,0.00016986,2]
[323414678,1713973854226,-1123.22,0.00016986,2]
[323414679,1713973854235,-2426.9,0.00016986,2]
[323414680,1713973854245,-500.0,0.00016986,2]
[323414681,1713973854254,-466.6483388,0.00016986,2]
[323414682,1713973854263,-500.0,0.00016986,2]
[323414683,1713973854273,-7241.22,0.00016986,2]
[323414684,1713973854282,-756.6,0.00016986,2]
[323414685,1713973854291,-500.0,0.00016986,2]
[323414686,1713973854301,-529.0,0.00016986,2]
[323414687,1713973854310,-971.73,0.00016986,2]
[323414688,1713973854319,-569.74084052,0.00016986,2]
[323414689,1713973854328,-720.48,0.00016986,2]
[323414690,1713973854338,-749.1,0.00016986,2]
[323414691,1713973854347,-500.0,0.00016986,2]
[323414692,1713973854356,-3467.77,0.00016986,2]
[323414693,1713973854365,-1047.76,0.00016986,2]
[323414694,1713973854374,-691.77,0.00016986,2]
[323414695,1713973854385,-500.0,0.00016986,2]
[323414696,1713973854394,-500.0,0.00016986,2]
[323414697,1713973854403,-5159.31,0.00016986,2]
[323414698,1713973854412,-611.69,0.00016986,2]
[323414700,1713973854422,-783.87,0.00016986,2]
[323414702,1713973854432,-3678.5,0.00016986,2]
[323414704,1713973854442,-500.0,0.00016986,2]